Workbook

Sheet entrata_-_titoli
C1: Comune di Lozio Provincia di Brescia Dati "Bilancio Facile" - Rendiconto - Entrate
B3: TITOLO | D3: TOTALE
D4: 2016
D5: ACCERTAMENTI CP
B6: 1 | C6: Entrate correnti di natura tributaria, contributiva e perequativa | D6: ='entrate_tributarie_-_categorie'!F10 -> 326887.31
B7: 2 | C7: Trasferimenti correnti | D7: =entrate_da_trasferimenti_corren!F11 -> 28577.09
B8: 3 | C8: Entrate extratributarie | D8: ='entrate_extratributarie_-_categ'!F11 -> 169288.35
B9: 4 | C9: Entrate in conto capitale | D9: ='entrate_in_conto_capitale_-_cat'!F11 -> 53684.54
B10: 5 | C10: Entrate da riduzione di attività finanziarie | D10: ='entrate_in_conto_capitale_-_rid'!F10 -> 0
B11: 6 | C11: Accensione Prestiti | D11: ='entrate_in_conto_capitale_-_acc'!F10 -> 0
B12: 7 | C12: Anticipazioni da istituto tesoriere/cassiere | D12: 0
B13: 9 | C13: Entrate per conto terzi e partite di giro | D13: 86347.39
D14: 0
C15: TOTALE | D15: =SUM(D6:D14) -> 664784.68

Sheet entrate_tributarie_-_categorie
C1: Comune di Lozio Provincia di Brescia Dati "Bilancio Facile" - Rendiconto - Entrate tributarie
B3: TITOLO 1 | D3: CATEGORIA | F3: TOTALE
F4: 2016
F5: ACCERTAMENTI CP
B6: 1 | C6: Entrate correnti di natura tributaria, contributiva e perequativa | D6: 10101 | E6: Imposte, tasse e proventi assimilati | F6: 304466.67
D7: 10104 | E7: Compartecipazioni di tributi | F7: 0
D8: 10301 | E8: Fondi perequativi da Amministrazioni Centrali | F8: 22420.64
D9: 10302 | E9: Fondi perequativi dalla Regione o Provincia auton. | F9: 0
C10: TOTALE | F10: =SUM(F6:F9) -> 326887.31

Sheet entrate_da_trasferimenti_corren
C1: Comune di Lozio Provincia di Brescia Dati "Bilancio Facile" - Rendiconto - Entrate da trasferimenti correnti
B3: TITOLO 2 | D3: CATEGORIA | F3: TOTALE
F4: 2016
F5: ACCERTAMENTI CP
B6: 2 | C6: Trasferimenti correnti | D6: 20101 | E6: Trasferimenti correnti da Amministrazioni pubbliche | F6: 26480.09
D7: 20102 | E7: Trasferimenti correnti da Famiglie | F7: 0
D8: 20103 | E8: Trasferimenti correnti da Imprese | F8: 2097
D9: 20104 | E9: Trasferimenti correnti da Istituzioni Sociali Private | F9: 0
D10: 20105 | E10: Trasferimenti correnti dall’Unione europea e dal Resto del Mondo | F10: 0
C11: TOTALE | F11: =SUM(F6:F10) -> 28577.09

Sheet entrate_extratributarie_-_categ
C1: Comune di Lozio Provincia di Brescia Dati "Bilancio Facile" - Rendiconto - Entrate extratributarie
B3: TITOLO 3 | D3: CATEGORIA | F3: TOTALE
F4: 2016
F5: ACCERTAMENTI CP
B6: 3 | C6: Entrate extratributarie | D6: 30100 | E6: Vendita di beni e servizi e proventi derivanti dalla gestione dei beni | F6: 158667.93
D7: 30200 | E7: Proventi derivanti dall'attività di controllo e repressione delle irregolarità e degli illeciti | F7: 1784.78
D8: 30300 | E8: Interessi attivi | F8: 0.18
D9: 30400 | E9: Altre entrate da redditi da capitale | F9: 0
D10: 30500 | E10: Rimborsi e altre entrate correnti | F10: 8835.46
C11: TOTALE | F11: =SUM(F6:F10) -> 169288.35

Sheet entrate_in_conto_capitale_-_cat
C1: Comune di Lozio Provincia di Brescia Dati "Bilancio Facile" - Rendiconto - Entrate in conto capitale
B3: TITOLO 4 | D3: CATEGORIA | F3: TOTALE
F4: 2016
F5: ACCERTAMENTI CP
B6: 4 | C6: Entrate in conto capitale | D6: 40100 | E6: Tributi in conto capitale | F6: 0
D7: 40200 | E7: Contributi agli investimenti | F7: 25422.81
D8: 40300 | E8: Altri trasferimenti in conto capitale | F8: 8923.81
D9: 40400 | E9: Entrate da alienazione di beni materiali e immateriali | F9: 6790
D10: 40500 | E10: Altre entrate in conto capitale | F10: 12547.92
C11: TOTALE | F11: =SUM(F6:F10) -> 53684.54

Sheet entrate_in_conto_capitale_-_rid
C1: Comune di Lozio Provincia di Brescia Dati "Bilancio Facile" - Rendiconto - Entrate da riduzione di attività finanziarie
B3: TITOLO 5 | D3: CATEGORIA | F3: TOTALE
F4: 2016
F5: ACCERTAMENTI CP
B6: 5 | C6: Entrate da riduzione di attività finanziarie | D6: 50100 | E6: Alienazione di attività finanziarie | F6: 0
D7: 50200 | E7: Riscossione crediti di breve termine | F7: 0
D8: 50300 | E8: Riscossione crediti di medio-lungo termine | F8: 0
D9: 50400 | E9: Altre entrate per riduzione di attività finanziarie | F9: 0
C10: TOTALE | F10: =SUM(F6:F9) -> 0

Sheet entrate_in_conto_capitale_-_acc
C1: Comune di Lozio Provincia di Brescia Dati "Bilancio Facile" - Rendiconto - Entrate da accensione prestiti
B3: TITOLO 6 | D3: CATEGORIA | F3: TOTALE
F4: 2016
F5: ACCERTAMENTI CP
B6: 6 | C6: Accensione Prestiti | D6: 60100 | E6: Emissione di titoli obbligazionari | F6: 0
D7: 60200 | E7: Accensione prestiti a breve termine | F7: 0
D8: 60300 | E8: Accensione mutui e altri finanziamenti a medio lungo termine | F8: 0
D9: 60400 | E9: Altre forme di indebitamento | F9: 0
C10: TOTALE | F10: =SUM(F6:F9) -> 0

Sheet principali_entrate_tributarie
C1: Comune di Lozio Provincia di Brescia Dati "Bilancio Facile" - Rendiconto - Principali Entrate di natura tributaria, contributiva e perequativa
B3: TITOLO 1 | D3: CATEGORIA | F3: TOTALE
F4: 2016
F5: ACCERTAMENTI CP
B6: 1 | C6: Entrate correnti di natura tributaria, contributiva e perequativa | E6: IMU | F6: 187940.56
E7: TARI | F7: 71495.43
E8: TASI | F8: 0
E9: ETC. | F9: =F11-F6-F7-F8-F10 -> 67451.32
F10: 0
C11: TOTALE | F11: ='entrate_tributarie_-_categorie'!F10 -> 326887.31

Sheet principali_entrate_da_trasferim
C1: Comune di Lozio Provincia di Brescia Dati "Bilancio Facile" - Rendiconto - Principali entrate da trasferimenti correnti
B3: TITOLO 2 | D3: CATEGORIA | F3: TOTALE
F4: 2016
F5: ACCERTAMENTI CP
B6: 2 | C6: Trasferimenti correnti | E6: TRASFERIMENTI DALLO STATO | F6: 18246.53
E7: TRASFERIMENTI DALLA REGIONE | F7: 0
E8: TRASFERIMENTI DALLA PROVINCIA | F8: 0
E9: ETC. | F9: =F11-F6-F7-F10 -> 10330.56
F10: 0
C11: TOTALE | F11: =entrate_da_trasferimenti_corren!F11 -> 28577.09

Sheet principali_entrate_extratributa
C1: Comune di Lozio Provincia di Brescia Dati "Bilancio Facile" - Rendiconto - Principali entrate extratributarie
B3: TITOLO 3 | D3: CATEGORIA | F3: TOTALE
F4: 2016
F5: ACCERTAMENTI CP
B6: 3 | C6: Entrate extratributarie | E6: PROVENTI DEI SERVIZI | F6: 9453.87
E7: PROVENTI DA SANZIONI CDS | F7: 0
E8: ETC. | F8: =F11-F6-F7-F9-F10 -> 159834.48
F9: 0
F10: 0
C11: TOTALE | F11: ='entrate_extratributarie_-_categ'!F11 -> 169288.35

Sheet principali_entrate_in_conto_cap
C1: Comune di Lozio Provincia di Brescia Dati "Bilancio Facile" - Rendiconto - Principali entrate in conto capitale
B3: TITOLI 4 – 5 – 6 | D3: CATEGORIA | F3: TOTALE
F4: 2016
F5: ACCERTAMENTI CP
F6: ='entrate_in_conto_capitale_-_cat'!F11 -> 53684.54
F7: ='entrata_-_titoli'!D10 -> 0
F8: ='entrata_-_titoli'!D11 -> 0
F9: ='entrata_-_titoli'!D12 -> 0
F10: 0
C11: TOTALE | F11: ='entrate_in_conto_capitale_-_cat'!F11 -> 53684.54

Sheet spesa_-_titoli
C1: Comune di Lozio Provincia di Brescia Dati "Bilancio Facile" - Rendiconto - Spese
B3: TITOLO | D3: TOTALE
D4: 2016
D5: IMPEGNI CP
B6: 1 | C6: Spese correnti | D6: 449227.99
B7: 2 | C7: Spese in conto capitale | D7: 131195.94
B8: 3 | C8: Spese per incremento di attività finanziarie | D8: 0
B9: 4 | C9: Rimborso prestiti | D9: 38665.97
B10: 5 | C10: Chiusura anticipazioni da istituto tesoriere | D10: 0
B11: 7 | C11: Spese per conto terzi e partite di giro | D11: 86347.39
D12: 0
C13: TOTALE | D13: =SUM(D6:D12) -> 705437.29

Sheet spese_correnti_-_missioni
C1: Comune di Lozio Provincia di Brescia Dati "Bilancio Facile" - Rendiconto - Spese per missione
B3: MISSIONE | D3: SPESE CORRENTI
D4: 2016 CASSA | E4: 2016 IMPEGNI CP
B5: 1 | C5: SERVIZI ISTITUZIONALI, GENERALI E DI GESTIONE | D5: 543951.17 | E5: 202649.06
B6: 2 | C6: GIUSTIZIA | D6: 0 | E6: 0
B7: 3 | C7: ORDINE PUBBLICO E SICUREZZA | D7: 0 | E7: 0
B8: 4 | C8: ISTRUZIONE E DIRITTO ALLO STUDIO | D8: 37384.37 | E8: 24406.17
B9: 5 | C9: TUTELA E VALORIZZAZIONE DEI BENI E DELLE ATTIVITA' CULTURALI | D9: 6193.22 | E9: 4473.36
B10: 6 | C10: POLITICHE GIOVANILI, SPORT E TEMPO LIBERO | D10: 252731.13 | E10: 2145.78
B11: 7 | C11: TURISMO | D11: 282208.32 | E11: 2600
B12: 8 | C12: ASSETTO DEL TERRITORIO ED EDILIZIA ABITATIVA | D12: 6487.48 | E12: 0
B13: 9 | C13: SVILUPPO SOSTENIBILE E TUTELA DEL TERRITORIO E DELL'AMBIENTE | D13: 1280913.12 | E13: 66327.66
B14: 10 | C14: TRASPORTI E DIRITTO ALLA MOBILITA' | D14: 1000075.63 | E14: 80459.01
B15: 11 | C15: SOCCORSO CIVILE | D15: 6502.85 | E15: 5136.42
B16: 12 | C16: DIRITTI SOCIALI, POLITICHE SOCIALI E FAMIGLIA | D16: 61194.99 | E16: 33781.01
B17: 13 | C17: TUTELA DELLA SALUTE | D17: 0 | E17: 0
B18: 14 | C18: SVILUPPO ECONOMICO E COMPETITIVITA' | D18: 353800 | E18: 0
B19: 15 | C19: POLITICHE PER IL LAVORO E LA FORMAZIONE PROFESSIONALE | D19: 0 | E19: 0
B20: 16 | C20: AGRICOLTURA, POLITICHE AGROALIMENTARI E PESCA | D20: 5760 | E20: 5759.95
B21: 17 | C21: ENERGIA E DIVERSIFICAZIONE DELLE FONTI ENERGETICHE | D21: 0 | E21: 0
B22: 18 | C22: RELAZIONI CON LE ALTRE AUTONOMIE TERRITORIALI E LOCALI RELAZIONI CON LE ALTRE AUTONOMIE TERRITORIALI E LOCALI | D22: 0 | E22: 0
B23: 19 | C23: RELAZIONI INTERNAZIONALI | D23: 0 | E23: 0
B24: 20 | C24: FONDI E ACCANTONAMENTI | D24: 7487.88 | E24: 0
B25: 50 | C25: DEBITO PUBBLICO | D25: 60502 | E25: 21489.57
B26: 60 | C26: ANTICIPAZIONI FINANZIARIE | D26: 139571 | E26: 0
B27: 99 | C27: SERVIZI PER CONTO TERZI | D27: 292492.12 | E27: 86347.39
D28: 0 | E28: 0
B29: TOTALE | D29: =SUM(D5:D28) -> 4337255.28 | E29: =SUM(E5:E28) -> 535575.38

Sheet spese_correnti_-_macroaggregati
C1: Comune di Lozio Provincia di Brescia Dati "Bilancio Facile" - Rendiconto - Spese per macroaggregati
B3: TITOLO 1 | D3: TOTALE
D4: 2016
D5: IMPEGNI CP
B6: 1 | C6: Redditi da lavoro dipendente | D6: 105799.18
B7: 2 | C7: Imposte e tasse a carico dell'ente | D7: 8633.52
B8: 3 | C8: Acquisto di beni e servizi | D8: 230226.1
B9: 4 | C9: Trasferimenti correnti | D9: 63643.6
B10: 5 | C10: Trasferimenti di tributi | D10: 0
B11: 6 | C11: Fondi perequativi | D11: 0
B12: 7 | C12: Interessi passivi | D12: 21489.57
B13: 8 | C13: Altre spese per redditi da capitale | D13: 0
B14: 9 | C14: Rimborsi e poste correttive delle entrate | D14: 2897
B15: 10 | C15: Altre spese correnti | D15: 16539.02
D16: 0
C17: TOTALE | D17: =SUM(D6:D16) -> 449227.99

Sheet spese_in_conto_capitale_-_missi
C1: Comune di Lozio Provincia di Brescia Dati "Bilancio Facile" - Rendiconto - Spese in conto capitale per missioni
B3: MISSIONE | D3: SPESE IN C/CAPITALE
D4: 2016
D5: IMPEGNI CP
B6: 1 | C6: SERVIZI ISTITUZIONALI, GENERALI E DI GESTIONE | D6: 8256.03
B7: 2 | C7: GIUSTIZIA | D7: 0
B8: 3 | C8: ORDINE PUBBLICO E SICUREZZA | D8: 0
B9: 4 | C9: ISTRUZIONE E DIRITTO ALLO STUDIO | D9: 0
B10: 5 | C10: TUTELA E VALORIZZAZIONE DEI BENI E DELLE ATTIVITA' CULTURALI | D10: 0
B11: 6 | C11: POLITICHE GIOVANILI, SPORT E TEMPO LIBERO | D11: 0
B12: 7 | C12: TURISMO | D12: 8250
B13: 8 | C13: ASSETTO DEL TERRITORIO ED EDILIZIA ABITATIVA | D13: 0
B14: 9 | C14: SVILUPPO SOSTENIBILE E TUTELA DEL TERRITORIO E DELL'AMBIENTE | D14: 54240.88
B15: 10 | C15: TRASPORTI E DIRITTO ALLA MOBILITA' | D15: 44631.32
B16: 11 | C16: SOCCORSO CIVILE | D16: 0
B17: 12 | C17: DIRITTI SOCIALI, POLITICHE SOCIALI E FAMIGLIA | D17: 15817.71
B18: 13 | C18: TUTELA DELLA SALUTE | D18: 0
B19: 14 | C19: SVILUPPO ECONOMICO E COMPETITIVITA' | D19: 0
B20: 15 | C20: POLITICHE PER IL LAVORO E LA FORMAZIONE PROFESSIONALE | D20: 0
B21: 16 | C21: AGRICOLTURA, POLITICHE AGROALIMENTARI E PESCA | D21: 0
B22: 17 | C22: ENERGIA E DIVERSIFICAZIONE DELLE FONTI ENERGETICHE | D22: 0
B23: 18 | C23: RELAZIONI CON LE ALTRE AUTONOMIE TERRITORIALI E LOCALI RELAZIONI CON LE ALTRE AUTONOMIE TERRITORIALI E LOCALI | D23: 0
B24: 19 | C24: RELAZIONI INTERNAZIONALI | D24: 0
B25: 20 | C25: FONDI E ACCANTONAMENTI | D25: 0
B26: 50 | C26: DEBITO PUBBLICO | D26: 0
B27: 60 | C27: ANTICIPAZIONI FINANZIARIE | D27: 0
B28: 99 | C28: SERVIZI PER CONTO TERZI | D28: 0
D29: 0
B30: TOTALE | D30: =SUM(D6:D29) -> 131195.94

Sheet spese_in_conto_capitale_-_macro
C1: Comune di Lozio Provincia di Brescia Dati "Bilancio Facile" - Rendiconto - Spese in conto capitale per macroaggregati
B3: TITOLO 2 | D3: TOTALE TOTALE
D4: 2016
D5: IMPEGNI CP
B6: 1 | C6: Tributi in conto capitale a carico dell'ente | D6: 0
B7: 2 | C7: Investimenti fissi lordi e acquisto di terreni | D7: 95945.94
B8: 3 | C8: Contributi agli investimenti | D8: 35250
B9: 4 | C9: Altri trasferimenti in conto capitale | D9: 0
B10: 5 | C10: Altre spese in conto capitale | D10: 0
D11: 0
C12: TOTALE | D12: =SUM(D6:D11) -> 131195.94

Sheet principali_spese_per_investimen
C1: Comune di Lozio Provincia di Brescia Dati "Bilancio Facile" - Rendiconto - Principali spese per investimento
B3: TITOLO 2 | D3: TOTALE TOTALE
D4: 2016
D5: IMPEGNI CP
B6: 1 | C6: Scuole | D6: 0
B7: 2 | C7: Strade | D7: 44631.32
B8: 3 | C8: Patrimonio comunale | D8: 8256.03
B9: 4 | C9: Altro | D9: =D11-D6-D7-D8-D10 -> 78308.59
D10: 0
C11: TOTALE | D11: ='spese_in_conto_capitale_-_macro'!D12 -> 131195.94

Sheet equilibri_di_bilancio
D1: Comune di Lozio Provincia di Brescia Dati "Bilancio Facile" - Rendiconto - Equilibri 2016
B3: VERIFICA DEGLI EQUILIBRI
L4: 16 | M4: 6
E5: ENTRATA | H5: SPESA | J5: DIFFERENZIALE
E6: 2016 | H6: 2016 | J6: 2016
B8: 1 | C8: Equilibrio della parte corrente (pareggio economico)
D10: Titolo | G10: Titolo
D11: UTILIZZO AVANZO | E11: 0
D12: FPV SPESE CORRENTI | E12: 0
D13: 1 | E13: ='entrata_-_titoli'!D6 -> 326887.31 | G13: 1 | H13: ='spesa_-_titoli'!D6 -> 449227.99
D14: 2 | E14: ='entrata_-_titoli'!D7 -> 28577.09 | G14: 4 | H14: ='spesa_-_titoli'!D9 -> 38665.97
D15: 3 | E15: ='entrata_-_titoli'!D8 -> 169288.35
D16: TOTALE | E16: =SUM(E11:E15) -> 524752.75 | G16: TOTALE | H16: =SUM(H13:H15) -> 487893.96 | J16: =E16-H16 -> 36858.79
B20: 2 | C20: Equilibrio della parte investimenti
D22: Titolo | G22: Titolo
D23: UTILIZZO AVANZO | E23: 21084.04
D24: FPV SPESE IN CONTO CAPITALE | E24: 63158.93
D25: 4 | E25: ='entrata_-_titoli'!D9 -> 53684.54 | G25: 2 | H25: ='spesa_-_titoli'!D7 -> 131195.94
D26: 5 | E26: ='entrata_-_titoli'!D10 -> 0 | G26: 3 | H26: ='spesa_-_titoli'!D8 -> 0
D27: 6 | E27: ='entrata_-_titoli'!D11 -> 0
D28: TOTALE | E28: =SUM(E23:E27) -> 137927.51 | G28: TOTALE | H28: =SUM(H25:H27) -> 131195.94 | J28: =E28-H28 -> 6731.57
B32: 3 | C32: Movimento fondi - Anticipazione di cassa
D34: Titolo | G34: Titolo
D35: 7 | E35: ='entrata_-_titoli'!D12 -> 0 | G35: 5 | H35: ='spesa_-_titoli'!D10 -> 0
D36: TOTALE | E36: =SUM(E35) -> 0 | G36: TOTALE | H36: =SUM(H35) -> 0 | J36: =E36-H36 -> 0
B40: 4 | C40: Equilibrio delle partite di giro
D42: Titolo | G42: Titolo
D43: 9 | E43: ='entrata_-_titoli'!D13 -> 86347.39 | G43: 7 | H43: ='spesa_-_titoli'!D11 -> 86347.39
D44: TOTALE | E44: =SUM(E43) -> 86347.39 | G44: TOTALE | H44: =SUM(H43) -> 86347.39 | J44: =E44-H44 -> 0
B48: 5 | C48: Pareggio finanziario
D50: Titolo | G50: Titolo
D51: UTILIZZO AVANZO PARTE CORRENTE | E51: =E11 -> 0
D52: UTILIZZO AVANZO PARTE CAPITALE | E52: =E23 -> 21084.04
D53: FPV SPESE CORRENTI | E53: =E12 -> 0
D54: FPV SPESE IN CONTO CAPITALE | E54: =E24 -> 63158.93
D55: 1 | E55: =E13 -> 326887.31 | G55: 1 | H55: =H13 -> 449227.99
D56: 2 | E56: =E14 -> 28577.09 | G56: 2 | H56: =H25 -> 131195.94
D57: 3 | E57: =E15 -> 169288.35 | G57: 3 | H57: =H26 -> 0
D58: 4 | E58: =E25 -> 53684.54 | G58: 4 | H58: =H14 -> 38665.97
D59: 5 | E59: =E26 -> 0 | G59: 5 | H59: =H35 -> 0
D60: 6 | E60: =E27 -> 0 | G60: 7 | H60: =H43 -> 86347.39
D61: 7 | E61: =E35 -> 0
D62: 9 | E62: =E43 -> 86347.39
D64: TOTALE | E64: =SUM(E51:E63) -> 749027.65 | G64: TOTALE | H64: =SUM(H55:H63) -> 705437.29 | J64: =E64-H64 -> 43590.36
J67: =SUM(J16:J44) -> 43590.36

Sheet entità_mutui
C1: Comune di Lozio Provincia di Brescia Dati "Bilancio Facile" - Rendiconto - Entità dei mutui
C3: 2015 | D3: 2016 | E3: 2017 | F3: 2018 | G3: 2019
B5: DEBITO RESIDUO INIZIALE | C5: 959271.24 | D5: =C9 -> 921873.85 | E5: =D9 -> 883207.88 | F5: 843224.14 | G5: 801857.37
B6: NUOVI PRESTITI | C6: 0 | D6: 0 | E6: 0 | F6: 0 | G6: 0
B7: RIMBORSO PRESTITI | C7: -37397.39 | D7: -38665.97 | E7: -39983.74 | F7: -41366.77 | G7: -42803.47
B8: ESTINZIONI ANTICIPATE | C8: 0 | D8: 0 | E8: 0 | F8: 0 | G8: 0
B9: TOTALE DEBITO AL 31/12 | C9: =SUM(C5:C8) -> 921873.85 | D9: =SUM(D5:D8) -> 883207.88 | E9: 843224.14 | F9: 801857.37 | G9: 759053.9
